Cogmind - Beta 13 @@@ ROGUE MODE // 2024.03.26 @ 10:47:41 Player: Julie Result: Self-destructed Performance ------------- Evolutions (1) 500 Regions Visited (2) 400 Robots Destroyed (6) 30 Value Destroyed (145) 145 Prototype IDs (1) 20 Alien Tech Used (0) 0 Bonus (0) 0 TOTAL SCORE: 1095 Bonus ------- None Cogmind --------- Core Integrity 329/400 Matter 280/300 Energy 100/100 System Corruption 0% Temperature Cool (0) Movement Core (100) Ox1 Location -9/Materials Parts ------- > --- POWER (1) -------- (None) > --- PROPULSION (3) --- (None) > --- UTILITY (3) ------ Small Storage Unit > --- WEAPON (2) ------- (None) > --- INVENTORY (8) ---- Light Ion Engine Light Ion Engine Aluminum Leg Light Armor Plating Reflective Plating Hacking Suite Hacking Suite Assault Rifle Peak State ------------ > --- POWER ------------ Cooled Ion Engine > --- PROPULSION ------- Flight Unit Flight Unit > --- UTILITY ---------- Small Storage Unit > --- WEAPON ----------- Light Assault Rifle > --- INVENTORY -------- Light Ion Engine Light Ion Engine Light Ion Engine Light Nuclear Core Aluminum Leg Aluminum Leg Aluminum Leg Assault Rifle [Rating: 8] Favorites ----------- Power Light Ion Engine Engine Light Ion Engine Propulsion Aluminum Leg Leg Aluminum Leg Flight Unit Flight Unit Utility Small Storage Unit Storage Small Storage Unit Protection Light Armor Plating Weapon Light Assault Rifle Energy Gun EM Pulse Gun Ballistic Gun Light Assault Rifle Build | -11 -10 -9 ------- Run | Yrd Mat Mat Slots Evolved 2 | . . 2 Power . | . . . Propulsion 1 | . . 1 Utility 1 | . . 1 Weapon . | . . . Parts Attached 13 | 7 2 4 Power 3 | 1 . 2 Engine 3 | 1 . 2 Core . | . . . Reactor . | . . . Propulsion 4 | 2 . 2 Treads . | . . . Leg 2 | 2 . . Wheel . | . . . Hover . | . . . Flight 2 | . . 2 Utility 2 | 1 1 . Device . | . . . Storage 1 | 1 . . Processor . | . . . Hackware . | . . . Protection 1 | . 1 . Artifact . | . . . Weapon 4 | 3 1 . Energy Gun 1 | 1 . . Energy Cannon . | . . . Ballistic Gun 3 | 2 1 . Ballistic Cannon . | . . . Launcher . | . . . Special Weapon . | . . . Impact Weapon . | . . . Slashing Weapon . | . . . Piercing Weapon . | . . . Special Melee Weapon . | . . . Unidentified Prototypes 1 | . . 1 Parts Lost 5 | . 1 4 Power 1 | . . 1 Propulsion 2 | . . 2 Utility . | . . . Weapon 2 | . 1 1 Highest Loss Streak 3 | . 1 3 To Critical Strikes . | . . . Average Slot Usage (%) 78 | . 90 52 Engine 12 | . 14 10 Leg 19 | . 28 . Flight 5 | . . 16 Storage 13 | . 14 11 Protection 5 | . 6 3 Energy Gun 7 | . 10 . Ballistic Gun 14 | . 16 11 Naked Turns . | . . . Heaviest Build 14 | 11 14 12 Greatest Support 20 | 20 20 8 Greatest Overweight (x) 3 | 3 . 2 Average Overweight (x) . | . . 1 Largest Inventory Capacity 8 | 8 8 8 Average Capacity 7 | 7 8 8 Most Carried 8 | 2 7 8 Average Carried 4 | 1 3 6 Final Capacity 8 | 8 8 8 Final Carried 8 | 2 7 8 Class Distribution -------------------- 100% | Mutant Dominant Class ---------------- Mutant | -10/Materials Mutant | -9/Materials Resources | -11 -10 -9 ----------- Run | Yrd Mat Mat Matter Collected 329 | 191 138 . Remotely . | . . . Salvage Created 187 | . 187 . Parts 13 | . 13 . Haulers Intercepted . | . . . Recyclers Shooed . | . . . Parts Field Recycled . | . . . Retrieved Matter . | . . . Parts Self-Destructed . | . . . Prevented . | . . . Kills | -11 -10 -9 ------- Run | Yrd Mat Mat Combat Hostiles Destroyed 6 | . 6 . Guns 5 | . 5 . AOE 1 | . 1 . Classes Destroyed 2 | . 2 . Swarmer 3 | . 3 . Grunt 3 | . 3 . Best Kill Streak 3 | . 3 . Combat Bots Only 3 | . 3 . Max Kills in Single Turn 1 | . 1 . Gunslinging . | . . . Exploded 1 | . 1 . Melee . | . . . Uniques/NPCs Destroyed . | . . . Combat | -11 -10 -9 -------- Run | Yrd Mat Mat Hostile Shots Fired 81 | . 50 31 Missed 30 | . 20 10 Damage Taken 611 | . 353 258 Core 151 | . 80 71 Absorbed by Shields . | . . . Core Remaining (%) 84 | 100 68 . Volleys Fired 28 | . 28 . Largest 2 | . 2 . Hottest 60 | . 60 . Shots Fired 45 | . 45 . Gun 45 | . 45 . Cannon . | . . . Launcher . | . . . Special . | . . . Kinetic 34 | . 34 . Thermal . | . . . Explosive . | . . . Electromagnetic 11 | . 11 . Robot Hit Streak 12 | . 12 . Robot Miss Streak 2 | . 2 . Penetration Max . | . . . Secondary Targets . | . . . Shots Hit Robots 29 | . 29 . Core Hits 12 | . 12 . Critical Kills . | . . . Critical Parts Destroyed . | . . . Critical Strikes . | . . . Melee Attacks . | . . . Impact . | . . . Slashing . | . . . Piercing . | . . . Sneak Attacks . | . . . Combat Hostiles . | . . . Follow-up Attacks . | . . . Damage Inflicted 329 | . 329 . Guns 279 | . 279 . Cannons . | . . . Explosions 38 | . 38 . Melee . | . . . Ramming 12 | . 12 . Kinetic 204 | . 204 . Thermal 38 | . 38 . Explosive . | . . . Electromagnetic 75 | . 75 . Impact . | . . . Slashing . | . . . Piercing . | . . . Highest Corruption . | . . . Average Corruption . | . . . Corruption Purged . | . . . Corruption Blocked . | . . . Overload Shots . | . . . Overflow Damage . | . . . Projectiles . | . . . Explosions . | . . . Melee . | . . . Knockbacks . | . . . Impact . | . . . Kinetic . | . . . Secondary . | . . . Self-Inflicted Damage . | . . . Shots . | . . . Rammed . | . . . Targets Rammed 1 | . 1 . Kicked 1 | . 1 . Crushed . | . . . Highest Temperature 73 | . 73 8 Average Temperature 25 | . 25 8 Received Heat Transfer 237 | . 174 63 Siege Activations . | . . . Robots Corrupted . | . . . Combat Hostiles . | . . . Parts Fried . | . . . Impact Corruptions . | . . . Robots Melted . | . . . Combat Hostiles . | . . . Parts Melted . | . . . Heat Transferred . | . . . Parts Sabotaged . | . . . Parts Stolen . | . . . Parts Stripped . | . . . Power Chain Reactions 1 | . 1 . Alert | -11 -10 -9 ------- Run | Yrd Mat Mat Peak Influence 266 | . 266 61 Initial 46 | . . 46 Average 70 | . 92 47 Maximum Alert Level 1 | . 1 . Low Security (%) 89 | 100 83 100 Level 1 10 | . 16 . Level 2 . | . . . Level 3 . | . . . Level 4 . | . . . Level 5 . | . . . High Security . | . . . Max Security . | . . . Squads Dispatched 2 | . 2 . Investigation . | . . . Extermination . | . . . Reinforcement 2 | . 2 . Assault . | . . . Garrison . | . . . Intercept . | . . . Searches Triggered . | . . . Construction Impeded . | . . . Haulers Reinforced . | . . . Active Scanning Responses . | . . . Cargo Convoy Interrupts . | . . . Stealth | -11 -10 -9 --------- Run | Yrd Mat Mat Distress Signals 6 | . 5 1 Communications Jammed . | . . . Distress Signals . | . . . Times Spotted 25 | . 19 6 Peak Tracking Total 9 | . 9 5 Tactical Retreats 3 | . 3 . Traps | -11 -10 -9 ------- Run | Yrd Mat Mat Traps Triggered 1 | . . 1 Indirectly . | . . . Trap Hack Attempts . | . . . Triggered . | . . . Disarmed . | . . . Reprogrammed . | . . . Reused . | . . . Traps Extracted . | . . . Installed . | . . . Triggered . | . . . Machines | -11 -10 -9 ---------- Run | Yrd Mat Mat Machines Disabled . | . . . Max in Single Turn . | . . . Machines Repaired . | . . . Machines Dismantled . | . . . Machines Sabotaged . | . . . Overloaded Fab Kills . | . . . Hacking | -11 -10 -9 --------- Run | Yrd Mat Mat Machines Accessed . | . . . Terminals . | . . . Fabricators . | . . . Repair Stations . | . . . Recycling Units . | . . . Scanalyzers . | . . . Garrison Access . | . . . Total Hacks . | . . . Successful . | . . . Failed . | . . . Catastrophic . | . . . Database Lockouts . | . . . Manual . | . . . Terminals . | . . . Fabricators . | . . . Repair Stations . | . . . Recycling Units . | . . . Scanalyzers . | . . . Garrison Access . | . . . Terminal Hacks . | . . . Fabricator Hacks . | . . . Repair Station Hacks . | . . . Recycling Unit Hacks . | . . . Scanalyzer . | . . . Garrison Access Hacks . | . . . Unauthorized Hacks . | . . . Terminals . | . . . Fabricators . | . . . Repair Stations . | . . . Recycling Units . | . . . Scanalyzers . | . . . Garrison Access . | . . . Data Cores Recovered . | . . . Used . | . . . Hacking Detections . | . . . Full Trace Events . | . . . Feedback Events . | . . . Feedback Blocked . | . . . Robot Schematics Acquired . | . . . Robots Built . | . . . Authchips . | . . . Time . | . . . Total Robot Build Rating . | . . . Part Schematics Acquired . | . . . Parts Built . | . . . Authchips . | . . . Time . | . . . Total Part Build Rating . | . . . Parts Repaired . | . . . Time . | . . . Parts Recycled . | . . . Recycled Matter . | . . . Retrieved Matter . | . . . Retrieved Components . | . . . Parts Scanalyzed . | . . . Part Schematics Acquired . | . . . Parts Damaged . | . . . Bothacking | -11 -10 -9 ------------ Run | Yrd Mat Mat Used RIF Installer . | . . . Robots Hacked . | . . . Non-combat . | . . . Combat . | . . . Robot Hacks Applied . | . . . Relay Couplers Released . | . . . Fabnet Peak Effective % . | . . . Robots Rewired . | . . . Allies Hacked . | . . . Hacks Repelled . | . . . Allies | -11 -10 -9 -------- Run | Yrd Mat Mat Total Allies . | . . . Largest Group . | . . . Highest-Rated Group . | . . . Highest-Rated Ally . | . . . Total Orders . | . . . Ally Attacks . | . . . Total Damage . | . . . Kills . | . . . Allies Corrupted . | . . . Allies Melted . | . . . Intel | -11 -10 -9 ------- Run | Yrd Mat Mat Robot Analysis Total . | . . . Derelict Logs Recovered . | . . . Drone Launches . | . . . Drone Recoveries . | . . . Exploration | -11 -10 -9 ------------- Run | Yrd Mat Mat Turns Passed 744 | 73 464 207 Spaces Moved 488 | 51 287 150 Core 39 | 25 . 14 Treads . | . . . Legs 313 | 26 287 . Wheels . | . . . Hover . | . . . Flight 136 | . . 136 Fastest Speed 37 | 50 120 37 Average Speed 122 | 120 120 128 Slowest Speed 200 | 200 120 200 Overloaded Moves . | . . . Propulsion Burnouts . | . . . Robots Hopped . | . . . Cave-ins Triggered . | . . . Exploration Rate (%) 19 | 5 31 21 Regions Visited 2 Branch Regions . Pre-discovered Areas . | . . . Known Exits Taken . | . . . Unknown Exits Taken 2 | 1 1 . Scrap Searched . | . . . Spaces Dug . | . . . Terrain Destroyed 6 | . 6 . Melee . | . . . Projectile . | . . . AOE 6 | . 6 . Terrain Rammed . | . . . Walls Destroyed . | . . . Machines Disabled . | . . . Actions | -11 -10 -9 --------- Run | Yrd Mat Mat Total 591 | 59 366 166 Wait 43 | . 43 . Move 486 | 50 286 150 Hop . | . . . Pick Up 13 | 2 6 5 Fast Attach 7 | 6 1 . Attach 4 | . 1 3 Detach 2 | . . 2 Swap 2 | 1 . 1 Drop 5 | . . 5 Fire 28 | . 28 . Melee . | . . . Ram . | . . . Kick 1 | . 1 . Crush . | . . . Escape Stasis . | . . . Rewire . | . . . Trap . | . . . Miscellaneous . | . . . Route ------- -11/Scrapyard -10/Materials -9/Materials History --------- Turn | Location | Event 6 | -11/Scrapyard | Discovered new exit (range 16) 74 | -11/Scrapyard | Entered Materials 303 | -10/Materials | Build established: Mutant 529 | -10/Materials | Discovered new exit (range 7) 538 | -10/Materials | Entered another Materials area 538 | -9/Materials | Evolved 2 slots: Propulsion x1, Utility x1 745 | -9/Materials | Self-destructed Last Messages --------------- 00597_ Massive razor-sharp blades shoot up from within the floor. 00597_ Lgt. Armor Plating severed. 00604_ Acquired Prototype Engine. 00614_ Identified Cld. Ion Engine. 00614_ Faulty integration damages Flight Unit (-4). 00616_ Dropped Faulty Cld. Ion Engine. 00617_ Dropped Aluminum Leg. 00617_ Dropped Corrupted Aluminum Leg. 00618_ Dropped Corrupted Lgt. Nuclear Core. 00623_ Acquired Lgt. Armor Plating. 00671_ Acquired Hacking Suite. 00675_ Acquired Reflective Plating. 00681_ Flight Unit destroyed. 00701_ K-01 Serf collects debris. 00729_ Flight Unit destroyed. 00732_ Lgt. Assault Rifle destroyed. 00732_ Lgt. Ion Engine destroyed. 00732_ Critical hit (Burn: +37). Map ----- +----------------------------------------------------+ | ???????????????????????????????????????????????? | | ???????????????????????????????????????????????? | | ???????????????????????????????????????????????? | | ???????????????????????????????????????????????? | | ???????????????????????????????????????????????? | | ???????????????????????????????????????????????? | | ???????????????????????????????????????????????? | | ???????????????????????????????????????????????? | | ???????????????????????????????????????????????? | | ?????????????? ??????????????????????????????? | | ?????????????? ###???????????????????????????? | | ?????????????# ????????????????????????? | | ?????????????# ??????????????????????? | | ?????????????# ?????????????????????? | | ?????????????+ T ?????????????????????? | | ?????????????# ??????????????????????? | | ?????????????# ? ???????????????????? | | ?????????????# ??????????????????? | | ?????????????# ??????????????????? | | ?????????????# " ???????????????????? | | ?????????????# """ ???????????????????? | | #+###????????# """ ????????????????????? | | #????????# """ ????????????????????? | | #????????# "" ????????????????????? | | #????????# """ #########??????????????? | | #????????# "" #@ #??????????????? | | #????????# """ # " #??????????????? | | ##????????# " # """ #??????????????? | | ########### # s """ #??????????????? | | #s """ #??????????????? | | + "" #??????????????? | | # """ #??????????????? | | ############+######### "" #??????????????? | | #????????? ??????# "" #??????????????? | | #??????? ! ????#| " #??????????????? | | #??????# #???# ]#??????????????? | | #??????# """"""" #???#########??????????????? | | #??????# """"""" #??????????????????????????? | | #??????# """"""" #??????????????????????????? | | = #??????# """"""" #??????????????????????????? | | #??????#???"""???#??????????????????????????? | | ####???????????????????????????????????????????? | | ???????????????????????????????????????????????? | | ???????????????????????????????????????????????? | | ???????????????????????????????????????????????? | | ???????????????????????????????????????????????? | | | | | | | | | +----------------------------------------------------+ Best States ------------- Heat Dissipation 28 Energy Generation 10 Energy Capacity 125 Matter Stores 300 Matter Capacity 300 Sight Range 16 Terrain Scan Density 10 Armor Coverage 150 Evasion (%) 55 Item Schematics ----------------- None Robot Schematics ------------------ None Fabricated ------------ Nothing Alien Tech Used ----------------- None Achievements -------------- None Challenges ------------ None Game ------ Seed OmegaOmegaBooster Manual? 0 Play Time 00:07:08 Cumulative 18.7 hours Start 2024.03.26 @ 10:42:07 End 2024.03.26 @ 10:47:41 Sessions 1 Manual Loads 0 Difficulty Rogue Special Mode None Game No. 57 Rogue 57 Adventurer 0 Explorer 0 Win Type - Total 0 Types 0/0/0/0/0/0/0/0/0 Lore% 14 Gallery% 25 Achievement% 20 Wizard Run 0 Options --------- Layout 1 ASCII 0 Keyboard 1 Movement Numpad Keybinds 0 Fullscreen 2 Font 24/Terminus Map View 50x35 Zoom Use 0% Tactical HUD 1 Map Filters NONE Filters NONE Steam 1 RUN: 74e62943-538a-4c78-93e4-e0db5f8aca13